bitfinex-derivatives/quotes_ETHF0:USTF0_20241007
["timestamp","ask_amount","ask_price","bid_price","bid_amount"]
[1728333421139,4.01657,2445.6,2445.5,0.40897]
[1728333421940,3.6076,2445.6,2445.5,0.40897]
[1728333423538,4.01655,2445.6,2445.5,0.40897]
[1728333425145,3.6076,2445.6,2445.5,0.40897]
[1728333426237,4.01655,2445.6,2445.5,0.40897]
[1728333427240,7.6964,2445.6,2445.2,4.21254]
[1728333427540,4.01657,2445.6,2445.5,0.40897]
[1728333427845,8.10537,2445.6,2445.5,0.40897]
[1728333428645,4.01657,2445.6,2445.5,0.40897]
[1728333430850,8.10537,2445.6,2445.5,0.40897]
[1728333431042,8.10537,2445.6,2445.2,3.19]
[1728333431348,0.40899,2445.5,2445.4,0.40898]
[1728333431550,4.01657,2445.6,2445.5,0.40897]
[1728333431751,8.10537,2445.6,2445.5,0.40897]
[1728333432047,4.01657,2445.6,2445.5,0.40897]
[1728333432447,8.10537,2445.6,2445.5,0.40897]
[1728333432641,4.01657,2445.6,2445.5,0.40897]
[1728333434653,3.6076,2445.6,2445.5,0.40897]
[1728333435253,3.2078,2445.6,2445.5,5.33777]
[1728333435747,3.6314,2445.9,2445.5,5.33777]
[1728333435943,3.6314,2445.9,2445.8,3.59892]
[1728333439357,4.0403,2445.9,2445.8,3.59892]
[1728333439560,3.6314,2445.9,2445.8,3.59892]
[1728333440747,4.0403,2445.9,2445.8,3.59892]
[1728333441553,3.6314,2445.9,2445.8,3.59892]
[1728333443755,3.2078,2445.9,2445.8,3.59892]
[1728333443957,0.83407,2446.1,2446.0,0.40889]
[1728333444158,0.83407,2446.1,2446.0,3.59889]
[1728333448457,0.4252,2446.1,2446.0,1.87889]
[1728333448865,0.83407,2446.1,2446.0,2.28449]
[1728333449255,0.4252,2446.1,2446.0,2.28449]
[1728333450462,3.2078,2446.2,2446.0,5.9636]
[1728333450670,1.02204,2446.5,2446.3,0.40884]
[1728333450671,0.3972,2446.4,2446.3,0.40884]
[1728333450866,0.3972,2446.4,2446.3,1.87884]
[1728333451864,0.80602,2446.4,2446.3,1.87884]
[1728333452559,0.80602,2446.4,2446.3,3.59884]
[1728333453459,0.3972,2446.4,2446.3,3.59884]
[1728333453659,0.80602,2446.4,2446.3,3.59884]
[1728333454669,0.3972,2446.4,2446.3,3.59884]
[1728333455968,0.3972,2446.4,2446.3,3.19]
[1728333455969,0.80602,2446.4,2446.3,3.19]
[1728333456169,0.40885,2446.2,2446.1,3.59886]
[1728333456364,3.61665,2446.2,2446.1,3.59886]
[1728333456964,3.2078,2446.2,2446.1,3.59886]
[1728333457266,3.61665,2446.2,2446.1,3.59886]
[1728333457663,4.03865,2446.2,2446.1,3.59886]
[1728333461266,0.83085,2446.2,2446.1,3.59886]
[1728333461465,4.03865,2446.2,2446.1,3.59886]
[1728333467672,3.6298,2446.2,2446.1,3.59886]
[1728333467876,4.03865,2446.2,2446.1,3.59886]
[1728333473569,3.6298,2446.2,2446.1,3.59886]
[1728333474276,4.03865,2446.2,2446.1,3.59886]
[1728333474470,4.03865,2446.2,2446.1,1.87886]
[1728333477471,3.6298,2446.2,2446.1,1.87886]
[1728333477674,4.03865,2446.2,2446.1,1.87886]
[1728333478784,4.03865,2446.2,2446.1,0.40887]
[1728333480569,4.03865,2446.2,2446.1,1.87887]
[1728333480977,8.12665,2446.2,2446.1,1.87887]
[1728333481165,4.03865,2446.2,2446.1,1.87887]
[1728333481373,7.7178,2446.2,2446.0,1.47]
[1728333481568,0.40894,2445.8,2445.7,0.40891]
[1728333481778,3.61672,2445.8,2445.7,1.47]
[1728333481983,3.61672,2445.8,2445.7,1.87894]
[1728333482277,4.40752,2445.8,2445.7,1.87894]
[1728333483989,3.6006,2446.1,2445.7,1.87894]
[1728333484279,0.8242,2446.0,2445.9,0.40889]
[1728333484679,0.4153,2446.0,2445.9,0.40889]
[1728333484879,0.82419,2446.0,2445.9,0.40889]
[1728333485477,0.82419,2446.0,2445.9,1.87889]
[1728333486587,4.00949,2446.1,2446.0,0.40889]
[1728333491779,3.61669,2446.1,2446.0,0.40889]
[1728333496190,3.61669,2446.1,2445.9,1.8789]
[1728333496383,3.2078,2446.1,2445.9,1.8789]
[1728333496590,0.40889,2446.0,2445.9,1.8789]
[1728333496888,4.22999,2446.1,2445.6,0.40894]
[1728333497091,0.40897,2445.5,2445.4,0.095]
[1728333497290,0.40897,2445.5,2445.4,1.47]
[1728333497788,0.4126,2445.6,2445.4,1.87899]
[1728333498091,0.40897,2445.5,2445.4,1.47]
[1728333499491,0.82567,2445.5,2445.4,1.47]
[1728333499688,7.7141,2445.5,2445.3,1.47]
[1728333499887,0.40899,2445.4,2445.3,1.47]
[1728333501992,0.40905,2445.0,2444.9,4.5194]
[1728333502188,0.40905,2445.0,2444.9,5.49106]
[1728333502585,0.40905,2445.0,2444.9,9.58146]
[1728333502798,0.40905,2445.0,2444.9,5.49106]
[1728333502992,0.40905,2445.0,2444.9,1.47]
[1728333503183,5.11305,2445.0,2444.8,1.47]
[1728333503385,4.42267,2444.9,2444.8,1.47]
[1728333504890,4.00887,2444.9,2444.8,1.87909]
[1728333506094,4.00887,2444.9,2444.8,1.47]
[1728333514597,4.00887,2444.9,2444.8,1.87909]
[1728333514804,4.00887,2444.9,2444.8,1.47]
[1728333516490,0.80107,2444.9,2444.8,1.47]
[1728333516701,4.00887,2444.9,2444.8,1.47]
[1728333518593,4.00887,2444.9,2444.8,1.87909]
[1728333520908,0.80107,2444.9,2444.8,1.87909]
[1728333521310,0.4091,2444.8,2444.7,0.40909]
[1728333521610,0.4091,2444.8,2444.7,1.87909]
[1728333525219,3.6169,2444.8,2444.7,1.87909]
[1728333526633,3.2078,2444.8,2444.7,1.87909]
[1728333526810,3.61689,2444.8,2444.7,1.87909]
[1728333527616,3.2078,2444.8,2444.7,5.5604]
[1728333527812,0.40907,2445.0,2444.9,0.40905]
[1728333528011,3.2078,2445.1,2444.9,1.47]
[1728333528213,3.2078,2445.1,2445.0,0.40905]
[1728333528521,3.2078,2445.1,2445.0,1.66085]
[1728333529816,3.61684,2445.1,2445.0,1.66085]
[1728333532114,0.40904,2445.1,2445.0,1.66085]
[1728333533221,3.61683,2445.2,2445.1,0.40904]
[1728333533414,3.61683,2445.2,2445.1,1.87904]
[1728333533813,0.40903,2445.2,2445.1,1.87904]
[1728333534014,3.61683,2445.2,2445.1,1.87904]
[1728333535109,0.40903,2445.2,2445.1,1.87904]
[1728333535311,3.61683,2445.2,2445.1,1.87904]
[1728333535516,0.40903,2445.2,2445.1,1.87904]
[1728333536216,3.61683,2445.2,2445.1,1.87904]
[1728333536414,3.2078,2445.2,2445.1,1.87904]
[1728333538217,3.2078,2445.2,2445.1,5.96864]
[1728333540425,3.2078,2445.6,2445.5,0.40897]
[1728333540724,1.84023,2446.0,2445.5,0.40897]
[1728333540725,3.2078,2446.0,2445.9,0.4089]
[1728333540923,3.6226,2446.0,2445.9,1.8789]
[1728333541414,0.4148,2446.0,2445.9,1.8789]
[1728333543320,4.0117,2446.3,2445.9,1.47]
[1728333543522,4.02845,2446.3,2446.2,1.87885]
[1728333544628,4.02845,2446.3,2446.2,1.47]
[1728333545017,7.7076,2446.3,2446.1,1.47]
[1728333545329,7.7076,2446.3,2446.1,1.87887]
[1728333545330,0.80505,2446.2,2446.1,1.87887]
[1728333549626,0.3962,2446.2,2446.1,1.87887]
[1728333549822,0.80505,2446.2,2446.1,1.87887]
[1728333552529,0.80505,2446.2,2446.1,1.47]
[1728333553834,4.89305,2446.2,2446.1,1.47]
[1728333556032,4.89305,2446.2,2446.1,1.87887]
[1728333556932,0.80505,2446.2,2446.1,1.87887]
[1728333557235,0.80505,2446.2,2446.1,1.47]
[1728333557430,0.80505,2446.2,2446.1,1.87887]
[1728333559029,0.80505,2446.2,2446.1,1.47]
[1728333559735,0.40887,2446.1,2446.0,1.87888]
[1728333559929,0.80387,2446.1,2446.0,1.47]
[1728333560129,0.80387,2446.1,2446.0,0.40889]
[1728333560536,0.80387,2446.1,2446.0,1.87889]
[1728333566843,0.80387,2446.1,2445.9,0.40889]
[1728333566844,1.43115,2446.0,2445.9,0.40889]
[1728333567043,3.61671,2446.0,2445.9,1.87889]
[1728333567743,0.40891,2446.0,2445.9,1.87889]
[1728333567944,3.61671,2446.0,2445.9,1.87889]
[1728333572035,3.61671,2446.0,2445.9,1.47]
[1728333572234,7.70471,2446.0,2445.8,0.40891]
[1728333572434,0.3903,2445.9,2445.6,1.47]
[1728333572633,3.61674,2445.7,2445.6,1.87894]
[1728333573640,0.40897,2445.6,2445.5,1.47]
[1728333573844,0.409,2445.4,2445.3,0.409]
[1728333574140,3.6168,2445.4,2445.3,1.879]
[1728333574531,4.0144,2445.4,2445.3,1.879]
[1728333577843,3.6054,2445.4,2445.0,2.36461]
[1728333578033,0.40903,2445.3,2445.2,1.879]
[1728333583744,3.6168,2445.4,2445.3,0.409]
[1728333583945,3.2078,2445.4,2445.3,1.879]
[1728333584635,3.2078,2445.4,2445.3,2.7004]
[1728333585641,3.61679,2445.4,2445.3,2.7004]
[1728333586771,3.2078,2445.4,2445.3,2.7004]
[1728333587248,3.61679,2445.4,2445.3,2.7004]
[1728333589648,0.40899,2445.4,2445.3,2.7004]
[1728333590451,4.6253,2445.6,2445.3,2.2914]
[1728333590650,0.40899,2445.5,2445.4,0.40897]
[1728333591247,4.6253,2445.6,2445.3,3.31392]
[1728333591248,3.61676,2445.6,2445.5,0.40897]
[1728333591453,3.2078,2445.6,2445.5,1.87897]
[1728333591855,3.61675,2445.6,2445.5,1.87897]
[1728333594347,4.00955,2445.6,2445.5,1.47]
[1728333594547,4.00955,2445.6,2445.5,1.87897]
[1728333595565,4.00955,2445.6,2445.5,0.40897]
[1728333596464,4.00955,2445.6,2445.5,1.87897]
[1728333597268,4.00955,2445.6,2445.5,1.47]
[1728333598165,0.40905,2445.1,2445.0,0.40904]
[1728333598368,3.61685,2445.1,2445.0,0.40904]
[1728333598870,4.03025,2445.1,2445.0,0.40904]
[1728333602570,4.03025,2445.1,2445.0,1.87904]
[1728333606473,0.82245,2445.1,2445.0,1.87904]
[1728333606675,4.03025,2445.1,2445.0,1.87904]
[1728333607882,4.03025,2445.1,2445.0,1.47]
[1728333608076,4.44055,2445.1,2445.0,1.47]
[1728333609872,4.44055,2445.1,2444.9,0.40907]
[1728333610071,0.40905,2445.0,2444.9,1.87907]
[1728333610583,0.40905,2445.0,2444.9,0.40907]
[1728333616788,4.0315,2445.1,2444.6,1.2153]
[1728333616991,0.4091,2444.7,2444.6,0.4201]
[1728333617187,0.40912,2444.6,2444.5,0.40912]
[1728333617494,0.40914,2444.5,2444.4,2.29064]
[1728333617889,0.4143,2444.6,2444.4,1.8815]
[1728333618087,0.82343,2444.6,2444.5,0.40914]
[1728333622388,0.82343,2444.6,2444.5,1.87914]
[1728333622389,0.40913,2444.6,2444.5,1.87914]
[1728333633491,0.40913,2444.6,2444.5,0.40914]
[1728333634599,3.61693,2444.6,2444.5,0.40914]
[1728333636396,0.40913,2444.6,2444.5,0.40914]
[1728333640796,5.45327,2444.7,2444.3,2.2886]
[1728333641096,5.45327,2444.7,2444.2,0.40917]
[1728333641097,0.40919,2444.3,2444.2,0.40917]
[1728333641498,0.40919,2444.3,2444.2,4.50037]
[1728333641499,1.21939,2444.3,2444.2,4.50037]
[1728333641898,0.40922,2444.0,2443.9,3.68784326]
[1728333642398,0.82922,2444.0,2443.9,7.77984326]
[1728333645094,2.29922,2444.0,2443.9,3.68784326]
[1728333645508,5.0978,2444.0,2443.7,0.3981]
[1728333645804,1.87927,2443.8,2443.7,0.40926]
[1728333646211,0.82687,2443.8,2443.7,0.40926]
[1728333655011,0.82687,2443.8,2443.4,0.095]
[1728333655012,0.40931,2443.5,2443.4,0.095]
[1728333655203,2.49328,2443.5,2443.0,3.2078]
[1728333655403,0.4192,2443.4,2443.3,0.40934]
[1728333655611,5.0871,2443.6,2443.5,0.40931]
[1728333655814,5.5022,2443.6,2443.5,0.40931]
[1728333657110,5.0929,2443.6,2443.3,0.3944]
[1728333657414,0.40931,2443.5,2443.4,0.40931]
[1728333662919,5.5022,2443.6,2443.5,0.40931]
[1728333671021,3.2078,2443.6,2443.5,0.40931]
[1728333671323,3.2078,2443.9,2443.8,0.40926]
[1728333671536,0.4153,2444.0,2443.9,0.40924]
[1728333672025,0.50414,2444.5,2444.4,0.40915]
[1728333672325,0.40914,2444.5,2444.4,0.40915]
[1728333673123,0.40918,2444.3,2444.2,0.40917]
[1728333673316,1.47,2444.3,2444.2,0.40917]
[1728333673929,1.8725,2444.3,2444.2,0.40917]
[1728333674628,2.28167,2444.3,2444.2,0.40917]
[1728333674824,1.8725,2444.3,2444.2,0.40917]
[1728333677526,2.28167,2444.3,2444.2,0.40917]
[1728333677729,1.8725,2444.3,2444.2,0.40917]
[1728333678030,2.28167,2444.3,2444.2,0.40917]
[1728333678432,1.8725,2444.3,2444.2,0.40917]
[1728333681130,5.0803,2444.3,2444.2,0.40917]
[1728333682736,5.48947,2444.3,2444.2,0.40917]
[1728333684027,3.6103,2444.3,2444.2,0.40917]
[1728333687436,0.4025,2444.3,2444.2,0.40917]
[1728333688940,3.2078,2444.5,2444.2,1.47]
[1728333689140,3.2078,2444.5,2444.4,1.87915]
[1728333689631,3.2078,2444.5,2444.4,5.97035]
[1728333690232,0.40911,2444.7,2444.4,5.5612]
[1728333690433,0.40911,2444.7,2444.6,0.40912]
[1728333693340,0.40914,2444.6,2444.5,0.40913]
[1728333696143,3.6058,2444.8,2444.3,44.52684]
[1728333696341,0.40911,2444.7,2444.6,0.4091]
[1728333708655,3.6058,2444.8,2444.5,1.47]
[1728333708962,0.398,2444.8,2444.7,0.4091]
[1728333710053,0.4268,2444.9,2444.6,1.8652]
[1728333710246,4.23036,2445.2,2444.9,0.40907]
[1728333710247,0.80246,2445.0,2444.9,0.40907]
[1728333710447,0.80245,2445.0,2444.9,0.40907]
[1728333712652,1.21505,2445.0,2444.9,0.40907]
[1728333718557,0.3934,2445.0,2444.9,0.40907]
[1728333718758,3.6145,2445.1,2445.0,0.40905]
[1728333718759,3.2078,2445.1,2445.0,0.40905]
[1728333718955,3.2078,2445.1,2445.0,1.87905]
[1728333719148,1.23973,2445.2,2445.1,0.40904]
[1728333719349,0.8307,2445.2,2445.1,0.82204]
[1728333719766,0.4084,2445.2,2445.1,2.29204]
[1728333719957,0.409,2445.4,2445.3,0.409]
[1728333719958,0.8174,2445.4,2445.3,0.409]
[1728333721170,0.40905,2445.1,2445.0,0.40903]
[1728333721460,0.40907,2445.0,2444.9,0.40905]
[1728333721760,0.40907,2445.0,2444.6,1.02277]
[1728333721761,0.40912,2444.7,2444.6,0.4091]
[1728333721964,1.47,2444.7,2444.6,0.4091]
[1728333722199,0.3907,2444.9,2444.7,0.40909]
[1728333722200,0.4091,2444.8,2444.7,0.40909]
[1728333724360,0.40912,2444.7,2444.6,0.4091]
[1728333724661,0.80142,2444.7,2444.6,0.4091]
[1728333727056,0.8014,2444.7,2444.6,0.4091]
[1728333730562,0.3923,2444.7,2444.6,0.4091]
[1728333730762,0.8014,2444.7,2444.6,0.4091]
[1728333732569,0.3923,2444.7,2444.6,0.4091]
[1728333733467,0.8014,2444.7,2444.6,0.4091]
[1728333733661,0.3923,2444.7,2444.6,0.4091]
[1728333734468,0.40914,2444.6,2444.5,0.40912]
[1728333734770,0.40914,2444.6,2444.2,0.40917]
[1728333734771,0.40919,2444.3,2444.2,0.40917]
[1728333734963,0.40919,2444.3,2443.9,2.33106]
[1728333735163,0.40919,2444.3,2444.1,0.4092]
[1728333735164,2.7097,2444.2,2444.1,0.4092]
[1728333735965,1.2397,2444.2,2444.1,0.4092]
[1728333740173,2.7097,2444.2,2444.1,0.4092]
[1728333747774,6.8009,2444.2,2444.1,0.4092]
[1728333747981,0.40925,2443.9,2443.8,0.40923]
[1728333748183,1.87925,2443.9,2443.8,0.40923]
[1728333748685,2.27855,2443.9,2443.8,0.40923]
[1728333751986,0.3993,2443.9,2443.8,0.40923]
[1728333752188,3.61703,2444.0,2443.9,0.40924]
[1728333752189,3.2078,2444.0,2443.9,0.40924]
[1728333752487,0.82659,2444.2,2444.1,0.4092]
[1728333754385,5.0943,2444.3,2444.0,0.8117]
[1728333754590,5.0943,2444.3,2444.2,0.40919]
[1728333754591,3.6243,2444.3,2444.2,0.40919]
[1728333757290,3.2078,2444.3,2444.2,0.40919]
[1728333757790,2.6889,2444.5,2444.4,0.40915]
[1728333757791,1.62805,2444.5,2444.4,0.40915]
[1728333760587,1.2189,2444.5,2444.4,0.40915]
[1728333760991,1.62804,2444.5,2444.4,0.40915]
[1728333761787,0.40915,2444.4,2444.3,0.79746]
[1728333762095,0.40915,2444.4,2444.3,0.40916]
[1728333762489,1.87915,2444.4,2444.3,0.40916]
[1728333763292,0.40918,2444.3,2444.2,0.40917]
[1728333772601,1.47,2444.4,2444.0,0.4073]
[1728333772795,5.44957,2444.5,2444.0,0.4092]
[1728333772796,1.87922,2444.1,2444.0,0.4092]
[1728333773305,2.30162,2444.1,2444.0,0.4092]
[1728333773503,2.70192,2444.1,2444.0,0.4092]
[1728333779109,0.4224,2444.1,2444.0,0.4092]
[1728333779406,0.8302,2444.2,2444.1,0.4092]
[1728333788212,0.8302,2444.2,2444.0,0.40921]
[1728333788213,0.40922,2444.1,2444.0,0.40921]
[1728333791006,1.87922,2444.1,2444.0,0.40921]
[1728333793514,0.40924,2443.9,2443.8,0.83674]
[1728333793715,0.40929,2443.7,2443.5,1.2919]
[1728333794015,0.40934,2443.4,2443.3,0.40933]
[1728333794222,0.40934,2443.4,2443.0,4.23128]
[1728333794223,0.40936,2443.3,2443.2,0.40935]
[1728333794410,2.30636,2443.3,2443.2,0.40935]
[1728333794611,2.30634,2443.3,2443.2,0.40936]
[1728333795118,2.30634,2443.3,2443.1,0.40936]
[1728333795119,0.40936,2443.2,2443.1,0.40936]
[1728333795422,1.87936,2443.2,2443.1,0.40936]
[1728333795626,1.47,2443.2,2443.1,0.40936]
[1728333796514,1.87936,2443.2,2443.1,0.40936]
[1728333801219,2.70286,2443.2,2443.1,0.40936]
[1728333804626,0.4094,2443.1,2443.0,0.40938]
[1728333809123,0.40942,2443.0,2442.9,0.40939]
[1728333809326,2.27602,2443.0,2442.9,0.40939]
[1728333821332,0.40942,2442.9,2442.7,0.793]
[1728333821523,0.40946,2442.6,2442.5,0.40946]
[1728333821729,5.08726,2442.6,2442.5,0.40946]
[1728333822827,0.40947,2442.5,2442.4,0.80337]
[1728333823532,0.40947,2442.5,2442.4,4.89777]
[1728333825035,0.40947,2442.5,2442.4,0.3939]
[1728333825337,0.40949,2442.4,2442.3,1.2171]
[1728333825644,2.26939,2442.4,2442.3,1.2171]
[1728333828033,0.79939,2442.4,2442.3,1.2171]
[1728333830240,0.79939,2442.4,2442.3,0.8262]
[1728333832041,2.26939,2442.4,2442.3,0.4167]
[1728333832347,2.26939,2442.4,2442.3,0.82621]
[1728333838940,2.26939,2442.4,2442.3,0.40951]
[1728333839238,3.09939,2442.4,2442.3,0.40951]
[1728333841145,0.40952,2442.3,2442.2,0.40951]
[1728333841843,3.71366,2442.4,2442.1,0.4087]
[1728333842349,0.40952,2442.3,2442.2,0.40951]
[1728333853961,0.40957,2442.0,2441.9,0.40955]
[1728333854161,0.4096,2441.9,2441.6,0.7831]
[1728333854355,1.87961,2441.8,2441.7,0.4096]
[1728333854761,0.8148,2441.9,2441.8,0.40959]
[1728333854965,2.2848,2441.9,2441.8,0.40959]
[1728333856561,2.69437,2441.9,2441.8,0.40959]
[1728333858071,2.2848,2441.9,2441.8,0.40959]
[1728333858261,1.861,2441.9,2441.8,0.40959]
[1728333858458,2.27057,2441.9,2441.8,0.40959]
[1728333861371,0.80057,2441.9,2441.8,0.40959]
[1728333862973,2.27057,2441.9,2441.8,0.40959]
[1728333863770,0.40962,2441.7,2441.6,0.40961]
[1728333863961,1.87962,2441.7,2441.6,0.40961]
[1728333864167,1.87962,2441.7,2441.5,0.4242]
[1728333864375,1.87962,2441.7,2441.4,0.40965]
[1728333864376,0.40964,2441.5,2441.4,0.40965]
[1728333864567,1.87964,2441.5,2441.4,0.40965]
[1728333865065,1.87964,2441.5,2441.4,4.50565]
[1728333866265,5.08744,2441.5,2441.4,0.40965]
[1728333866460,5.08744,2441.5,2441.4,4.50565]
[1728333867072,5.08744,2441.5,2441.4,0.40965]
[1728333868480,4.6778,2441.5,2441.3,0.4181]
[1728333868775,0.40969,2441.3,2441.2,0.40968]
[1728333869080,1.87969,2441.3,2441.2,0.40968]
[1728333869269,2.68549,2441.3,2441.2,0.40968]
[1728333869975,0.40971,2441.2,2441.1,0.4097]
[1728333870179,0.40971,2441.2,2440.9,1.93223]
[1728333870180,5.08751,2441.2,2440.9,0.8129]
[1728333870380,1.47,2441.0,2440.9,0.40974]
[1728333871066,1.8918,2441.0,2440.9,0.40974]
[1728333871376,2.30152,2441.0,2440.9,0.40974]
[1728333871779,1.8918,2441.0,2440.9,0.40974]
[1728333873388,1.8918,2441.0,2440.9,4.50654]
[1728333873782,1.8918,2441.0,2440.9,0.40974]
[1728333874291,1.8918,2441.0,2440.9,4.50654]
[1728333874986,1.8918,2441.0,2440.9,0.40974]
[1728333875686,2.30152,2441.0,2440.9,0.40974]
[1728333877580,0.4218,2441.0,2440.9,0.40974]
[1728333877995,4.6778,2441.2,2440.7,2.2666]
[1728333878189,5.0956,2441.2,2441.1,0.40971]
[1728333878891,5.50529,2441.2,2441.1,0.40971]
[1728333879092,5.0956,2441.2,2441.1,0.40971]
[1728333880197,2.04778,2442.1,2441.1,0.40971]
[1728333880198,3.3028,2441.5,2441.1,4.50651]
[1728333880389,4.6778,2441.5,2441.4,0.40966]
[1728333881299,5.08744,2441.5,2441.4,0.40966]
[1728333881501,0.40968,2441.4,2441.3,0.40966]
[1728333881687,0.4097,2441.2,2441.1,0.40969]
[1728333881995,3.6175,2441.2,2441.1,0.40969]
[1728333883291,3.6175,2441.2,2440.8,5.22139]
[1728333883292,3.2078,2441.2,2440.8,4.197]
[1728333883497,3.2078,2441.2,2440.6,0.9365]
[1728333883498,1.47,2441.0,2440.6,0.9365]
[1728333883691,1.47,2440.7,2440.6,0.40979]
[1728333884097,1.47,2440.7,2440.6,4.50739]
[1728333886500,3.2,2440.7,2440.6,4.50739]
[1728333887291,3.60978,2440.7,2440.6,4.50739]
[1728333887497,3.60978,2440.7,2440.6,0.40979]
[1728333890804,3.2,2440.7,2440.6,0.40979]
[1728333891597,6.4078,2440.7,2440.6,0.40979]
[1728333892307,3.2078,2440.7,2440.6,0.40979]
[1728333894907,4.46906,2440.8,2440.4,1.82056]
[1728333895203,4.46906,2440.8,2440.7,0.40978]
[1728333898507,1.26126,2440.8,2440.7,0.40978]
[1728333898907,4.46906,2440.8,2440.7,0.40978]
[1728333899913,1.26126,2440.8,2440.7,0.40978]
[1728333900111,4.46906,2440.8,2440.7,0.40978]
[1728333900616,3.6329,2440.8,2440.7,0.40978]
[1728333901209,4.04266,2440.8,2440.7,0.40978]
[1728333901515,0.83486,2440.8,2440.7,0.40978]
[1728333901815,0.40973,2441.0,2440.6,1.02446]
[1728333902108,0.4246,2441.0,2440.9,0.40974]
[1728333902914,0.40972,2441.1,2441.0,0.40971]
[1728333903211,0.83432,2441.1,2441.0,0.40971]
[1728333903712,0.4246,2441.1,2441.0,0.40971]
[1728333903906,0.83431,2441.1,2441.0,0.40971]
[1728333904111,0.4246,2441.1,2441.0,0.40971]
[1728333905015,0.83431,2441.1,2441.0,0.40971]
[1728333906112,0.4246,2441.1,2441.0,0.40971]
[1728333908006,0.83431,2441.1,2441.0,0.40971]
[1728333908311,1.48,2441.2,2440.8,0.4294]
[1728333908512,3.2078,2441.3,2441.2,0.40969]
[1728333908713,3.61747,2441.3,2441.2,0.40969]
[1728333909010,3.2078,2441.3,2441.2,0.40969]
[1728333909209,2.71617,2441.4,2441.3,0.40967]
[1728333910607,2.3065,2441.4,2441.1,0.3999]
[1728333910826,1.48,2441.3,2441.2,0.40967]
[1728333914112,2.71616,2441.4,2441.3,0.40967]
[1728333914413,2.71617,2441.4,2441.3,0.40967]
[1728333915523,5.92397,2441.4,2441.3,0.40967]
[1728333916222,5.5143,2441.4,2441.3,0.40967]
[1728333917221,5.92396,2441.4,2441.3,0.40967]
[1728333917519,5.5143,2441.4,2441.3,0.40967]
[1728333918113,2.3065,2441.4,2441.3,0.40967]
[1728333918810,2.71616,2441.4,2441.3,0.40967]
[1728333919009,0.4271,2441.4,2441.3,0.40967]
[1728333919220,0.83676,2441.4,2441.3,0.40967]
[1728333919422,0.4271,2441.4,2441.3,0.40967]
[1728333919920,0.83676,2441.4,2441.3,0.40967]
[1728333920115,0.4137,2441.6,2441.3,4.096]
[1728333920319,2.73253,2441.6,2441.5,0.40964]
[1728333922009,2.3229,2441.6,2441.5,0.40964]
[1728333928625,0.40969,2441.3,2441.0,0.095]
[1728333928819,1.22361,2441.2,2441.1,0.4097]
[1728333929122,1.88972,2441.1,2441.0,0.40972]
[1728333929523,4.6878,2441.1,2440.7,5.65034]
[1728333929721,1.48,2440.9,2440.7,0.4289]
[1728333929919,1.48,2440.9,2440.8,0.40976]
[1728333930227,0.3928,2440.8,2440.7,0.83868]
[1728333930418,5.0806,2440.8,2440.5,0.8077]
[1728333930623,5.0806,2440.8,2440.5,1.69181]
[1728333930624,1.48,2440.6,2440.5,1.69181]
[1728333930828,0.826,2440.7,2440.5,1.282]
[1728333931028,0.826,2440.7,2440.6,0.40979]
[1728333932828,1.23578,2440.7,2440.6,0.40979]
[1728333933334,0.826,2440.7,2440.6,0.40979]
[1728333934535,1.23578,2440.7,2440.6,0.40979]
[1728333934832,0.826,2440.7,2440.6,0.40979]
[1728333938338,1.23578,2440.7,2440.6,0.40979]
[1728333939843,0.40981,2440.6,2440.5,0.4098]
[1728333940040,0.40981,2440.6,2440.4,0.40981]
[1728333940041,0.40982,2440.5,2440.4,0.40981]
[1728333940342,2.28872,2440.5,2440.4,0.40981]
[1728333941438,1.8789,2440.5,2440.0,1.11973]
[1728333941633,1.48,2440.4,2440.0,1.41933]
[1728333941835,1.48,2440.4,2440.3,0.40984]
[1728333942335,1.88983,2440.4,2440.3,0.40984]
[1728333944842,1.48,2440.4,2440.0,1.41933]
[1728333945077,1.23346,2440.3,2440.2,0.40985]
[1728333945250,0.40988,2440.2,2440.1,0.40986]
[1728333945444,2.28988,2440.2,2440.1,0.40986]
[1728333948050,1.88,2440.2,2439.7,0.99602882]
[1728333948247,0.80987,2440.2,2440.1,0.40988]
[1728333949947,0.4,2440.2,2440.1,0.40988]
[1728333950147,0.80986,2440.2,2440.1,0.40988]
[1728333950662,0.4,2440.2,2440.1,0.40988]
[1728333951057,0.80986,2440.2,2440.1,0.40988]
[1728333951258,2.28986,2440.2,2440.1,0.40988]
[1728333952646,0.40989,2440.1,2440.0,0.40988]
[1728333952851,5.98829,2440.1,2440.0,0.40988]
[1728333953255,0.40992,2439.9,2439.8,0.40991]
[1728333953456,1.88992,2439.9,2439.8,0.40991]
[1728333954965,2.28842,2439.9,2439.8,0.40991]
[1728333955457,2.68502,2439.9,2439.8,0.40991]
[1728333956563,0.3985,2439.9,2439.8,0.40991]
[1728333957853,1.8785,2439.9,2439.6,0.3985]
[1728333958154,1.8785,2439.9,2439.3,5.55771517]
[1728333958155,0.40999,2439.4,2439.3,0.505]
[1728333958355,1.88999,2439.4,2439.3,0.41]
[1728333958658,2.68929,2439.4,2439.3,0.41]
[1728333959152,2.2793,2439.4,2439.3,0.41]
[1728333960461,0.4044,2439.4,2439.3,0.41]
[1728333960658,1.88996,2439.6,2439.5,0.40998]